bitfinex-derivatives/quotes_SOLF0:USTF0_20250318
["timestamp","ask_amount","ask_price","bid_price","bid_amount"]
[1742306594840,0.05325662,122.22,122.21,42.5232]
[1742306595434,0.05325662,122.22,122.21,34.34]
[1742306595839,0.05325662,122.22,122.2,0.05665639]
[1742306596743,56.59435022,122.22,122.2,0.05665639]
[1742306597642,0.05325662,122.22,122.2,8.23995639]
[1742306597841,0.05325662,122.22,122.2,0.05665639]
[1742306598036,0.05325662,122.22,122.21,34.32]
[1742306598241,0.05325662,122.22,122.21,42.5032]
[1742306600148,2.417,122.31,122.24,8.1808]
[1742306600449,56.5410936,122.26,122.22,34.32]
[1742306600952,8.1819,122.23,122.2,39.1229]
[1742306601146,56.5410936,122.24,122.2,39.1229]
[1742306601452,0.05201377,122.23,122.2,0.05922432]
[1742306601656,90.8610936,122.22,122.2,0.05922432]
[1742306601846,90.8610936,122.22,122.14,270.1]
[1742306601847,147.4021872,122.22,122.14,270.1]
[1742306602146,56.5410936,122.18,122.14,270.1]
[1742306602351,56.5410936,122.18,122.15,0.27]
[1742306602747,56.5410936,122.16,122.15,0.27]
[1742306602947,64.7276936,122.16,122.15,0.27]
[1742306603147,64.7276936,122.16,122.15,0.33245666]
[1742306604254,99.0476936,122.16,122.15,0.33245666]
[1742306604552,8.1893,122.12,122.09,49.522]
[1742306604952,56.5410936,122.14,122.09,49.522]
[1742306605146,64.7293936,122.14,122.09,57.7132]
[1742306605653,56.5410936,122.14,122.09,49.522]
[1742306605856,0.05679332,122.13,122.1,0.05176513]
[1742306606751,8.24549332,122.13,122.1,0.05176513]
[1742306606957,0.05679332,122.13,122.1,0.05176513]
[1742306608253,34.39679332,122.13,122.1,0.05176513]
[1742306608556,8.1899,122.11,122.1,0.05176513]
[1742306608756,34.34,122.11,122.04,39.4889]
[1742306608956,56.5410936,122.1,122.04,39.4889]
[1742306609156,8.1909,122.1,122.06,8.193]
[1742306609758,77.33504536,122.11,122.07,8.1926]
[1742306610057,0.05533582,122.09,122.08,34.34]
[1742306610257,8.189,122.13,122.09,8.191]
[1742306610457,0.05165667,122.1,122.09,8.191]
[1742306611258,0.05165667,122.1,122.08,34.39620981]
[1742306611649,0.05165667,122.1,122.09,8.1913]
[1742306612255,8.1874,122.15,122.11,8.1895]
[1742306612460,69.14474536,122.16,122.11,34.34]
[1742306612655,34.80474536,122.16,122.11,42.5296]
[1742306612859,34.80474536,122.16,122.09,304.6]
[1742306613363,8.24691259,122.14,122.11,0.05641629]
[1742306614256,8.1888,122.13,122.11,0.05641629]
[1742306614457,34.86335795,122.14,122.11,0.05641629]
[1742306615665,34.80474536,122.12,122.11,0.05641629]
[1742306615967,69.14474536,122.12,122.05,270.26]
[1742306616166,34.80474536,122.09,122.05,270.26]
[1742306616461,69.14474536,122.09,122.05,270.26]
[1742306616966,8.1923,122.08,122.05,270.26]
[1742306617165,8.24541829,122.08,122.06,0.05358529]
[1742306617956,0.05311829,122.08,122.06,0.05358529]
[1742306618663,8.24511829,122.08,122.06,0.05358529]
[1742306618965,0.05311829,122.08,122.06,0.05358529]
[1742306619668,8.24541829,122.08,122.06,0.05358529]
[1742306619869,0.05311829,122.08,122.06,0.05358529]
[1742306620274,8.24541829,122.08,122.06,0.05358529]
[1742306620770,8.1926,122.07,122.06,0.05358529]
[1742306621463,42.5326,122.07,122.06,0.05358529]
[1742306621870,77.33734536,122.07,122.06,0.05358529]
[1742306622071,69.14474536,122.07,122.02,10.45]
[1742306622473,8.1945,122.05,122.02,10.45]
[1742306622879,8.1945,122.05,122.02,1.52]
[1742306623073,8.25326805,122.05,122.02,9.77385588]
[1742306623278,0.05876805,122.05,122.02,1.57785588]
[1742306623681,0.05876805,122.05,122.02,35.91785588]
[1742306624078,0.05876805,122.05,122.02,34.39785588]
[1742306624275,0.05876805,122.05,122.04,8.1946]
[1742306624478,0.05876805,122.05,122.02,34.39785588]
[1742306626379,8.1916,122.09,122.02,34.39785588]
[1742306626675,69.14474536,122.11,122.02,34.39785588]
[1742306626870,34.34,122.12,122.02,69.14474536]
[1742306627073,69.14474536,122.13,122.02,69.14474536]
[1742306627375,42.5276,122.15,122.12,8.189]
[1742306627780,42.58279896,122.15,122.12,8.189]
[1742306627976,42.58279896,122.15,122.12,0.05855284]
[1742306628176,8.24279896,122.15,122.12,0.05855284]
[1742306628377,8.1881,122.14,122.12,0.05855284]
[1742306628779,0.05519896,122.15,122.12,8.24745284]
[1742306629382,0.05519896,122.15,122.12,0.05855284]
[1742306630274,8.1884,122.14,122.12,0.05855284]
[1742306630884,8.24279896,122.15,122.12,8.24785284]
[1742306631386,8.24259896,122.15,122.13,42.5283]
[1742306631576,0.05519896,122.15,122.13,34.34]
[1742306631776,8.1879,122.14,122.13,34.34]
[1742306632080,0.05519896,122.15,122.12,0.05855284]
[1742306632585,8.1886,122.13,122.12,0.05855284]
[1742306633179,8.1882,122.14,122.12,0.05855284]
[1742306634478,0.05519896,122.15,122.12,0.05855284]
[1742306635584,8.188,122.14,122.12,0.05855284]
[1742306636084,8.1886,122.13,122.12,0.05855284]
[1742306636585,34.32,122.13,122.08,270.38]
[1742306636887,34.80474536,122.12,122.08,270.38]
[1742306637686,34.32,122.13,122.1,8.1902]
[1742306637880,0.06168353,122.11,122.09,0.05988331]
[1742306638784,0.06168353,122.11,122.1,8.1906]
[1742306641387,42.5063,122.17,122.14,8.1875]
[1742306641588,74.33544536,122.18,122.12,34.32]
[1742306641783,76.87614536,122.18,122.12,34.32]
[1742306641985,34.80474536,122.16,122.12,34.32]
[1742306642385,8.1877,122.15,122.12,34.32]
[1742306642589,0.0543538,122.15,122.13,0.05594903]
[1742306642988,8.1879,122.14,122.13,0.05594903]
[1742306644687,8.2419538,122.15,122.13,0.05594903]
[1742306644886,0.0543538,122.15,122.13,0.05594903]
[1742306645291,8.1879,122.14,122.13,0.05594903]
[1742306645493,0.0543538,122.15,122.13,0.05594903]
[1742306645894,8.2420538,122.15,122.13,0.05594903]
[1742306646191,0.0543538,122.15,122.13,0.05594903]
[1742306646599,8.1879,122.14,122.13,0.05594903]
[1742306646893,0.0543538,122.15,122.13,0.05594903]
[1742306647196,8.1879,122.14,122.13,0.05594903]
[1742306647599,0.0543538,122.15,122.13,0.05594903]
[1742306649391,0.0543538,122.15,122.14,34.32]
[1742306649594,8.185,122.19,122.17,8.1857]
[1742306649790,8.185,122.19,122.17,42.5057]
[1742306650601,34.80474536,122.22,122.17,42.5057]
[1742306650799,0.05697022,122.19,122.17,34.37880258]
[1742306650997,8.24187022,122.19,122.17,34.37880258]
[1742306651193,0.05697022,122.19,122.17,34.37880258]
[1742306651496,8.1853,122.18,122.17,34.37880258]
[1742306652700,8.1853,122.18,122.17,0.05880258]
[1742306652903,42.99004536,122.18,122.17,0.05880258]
[1742306653202,8.1873,122.15,122.14,270.3]
[1742306653502,8.1856,122.18,122.14,278.4873]
[1742306653896,34.80474536,122.2,122.14,270.3]
[1742306654201,8.1869,122.16,122.14,270.3]
[1742306654395,34.86016317,122.18,122.16,0.05257438]
[1742306654696,8.1859,122.17,122.16,0.05257438]
[1742306655201,34.86016317,122.18,122.16,0.05257438]
[1742306655399,0.05541781,122.18,122.16,34.35257438]
[1742306655595,0.05541781,122.18,122.17,8.1859]
[1742306655800,40.00374536,122.24,122.16,34.35257438]
[1742306656101,40.00374536,122.24,122.21,8.1832]
[1742306656298,120.02660206,122.26,122.21,34.3]
[1742306656299,163.01164742,122.26,122.21,34.3]
[1742306656506,154.83134742,122.26,122.21,34.3]
[1742306656799,154.83134742,122.26,122.22,8.1823]
[1742306657001,8.24193544,122.25,122.22,8.2416104]
[1742306657197,0.06103544,122.25,122.22,0.0593104]
[1742306657398,8.1819,122.23,122.22,0.0593104]
[1742306658401,69.10474536,122.24,122.19,1.52]
[1742306658699,34.80474536,122.21,122.19,1.52]
[1742306658902,8.1839,122.2,122.19,1.52]
[1742306659395,8.1839,122.2,122.18,0.05269078]
[1742306659396,34.3,122.2,122.18,0.05269078]
[1742306659601,34.80474536,122.19,122.12,272.8388]
[1742306659802,34.80474536,122.17,122.12,272.8388]
[1742306660002,8.1869,122.16,122.12,272.8388]
[1742306660399,8.188,122.14,122.12,272.8388]
[1742306660595,69.10474536,122.17,122.12,272.8388]
[1742306660800,0.05542165,122.14,122.12,272.90118545]
[1742306661795,0.05542165,122.14,122.12,281.09008545]
[1742306661999,0.05542165,122.14,122.12,272.90118545]
[1742306662900,0.05542165,122.14,122.12,281.08998545]
[1742306663107,0.05542165,122.14,122.12,272.90118545]
[1742306663609,0.05542165,122.14,122.13,8.1886]
[1742306663904,0.05542165,122.14,122.12,272.90118545]
[1742306664104,0.05542165,122.14,122.12,281.09008545]
[1742306664304,0.05542165,122.14,122.12,272.90118545]
[1742306665605,0.05542165,122.14,122.12,281.09008545]
[1742306665900,0.05542165,122.14,122.12,272.90118545]
[1742306666205,34.80474536,122.19,122.13,34.28]
[1742306666407,34.80474536,122.21,122.13,34.28]
[1742306666604,8.1842,122.2,122.17,8.1856]
[1742306667007,8.1842,122.2,122.17,17.1056]
[1742306667212,8.1846,122.19,122.17,8.92]
[1742306667406,0.05897922,122.2,122.17,8.97942406]
[1742306668208,0.05897922,122.2,122.19,8.1846]
[1742306668912,0.05897922,122.2,122.19,42.4646]
[1742306669113,212.47927825,122.25,122.21,8.1832]
[1742306669114,209.90017825,122.25,122.21,8.1832]
[1742306669410,209.90017825,122.25,122.19,34.28]
[1742306669611,209.90017825,122.25,122.21,8.1832]
[1742306669814,140.81543289,122.25,122.19,34.28]
[1742306670013,140.81543289,122.25,122.2,2.4671]
[1742306670216,8.1815,122.24,122.22,8.1822]
[1742306670420,8.23526314,122.24,122.22,42.4622]
[1742306670710,8.23526314,122.24,122.22,34.28]
[1742306671410,0.05376314,122.24,122.22,34.28]
[1742306672311,40.91402783,122.27,122.22,34.28]
[1742306672515,32.73452783,122.27,122.26,8.1799]
[1742306672708,32.73452783,122.27,122.26,34.28]
[1742306672909,8.1791,122.28,122.26,34.28]
[1742306673210,34.80474536,122.31,122.26,34.28]
[1742306673514,0.05745717,122.28,122.26,34.34014674]
[1742306673821,8.1779,122.3,122.27,8.1792]
[1742306674117,0.06007138,122.28,122.27,8.1792]
[1742306674411,67.53927319,122.34,122.26,42.4596]
[1742306674610,0.06054375,122.29,122.26,34.33757123]
[1742306674917,0.06054375,122.29,122.26,0.05850354]
[1742306675611,8.23874375,122.29,122.26,0.05850354]
[1742306675807,0.06054375,122.29,122.26,0.05850354]
[1742306676610,8.1786,122.28,122.26,0.05850354]
[1742306677017,0.06054375,122.29,122.26,0.05850354]
[1742306677212,0.06054375,122.29,122.27,8.1789]
[1742306677408,0.06054375,122.29,122.27,34.26]
[1742306678415,0.06054375,122.29,122.28,8.1786]
[1742306678814,0.06054375,122.29,122.27,34.26]
[1742306679312,8.1762,122.32,122.28,8.1779]
[1742306679519,34.26,122.35,122.27,34.26]
[1742306680018,34.26,122.35,122.29,8.1774]
[1742306680215,76.88514536,122.36,122.3,34.26]
[1742306680415,8.1749,122.34,122.32,0.05903366]
[1742306680716,8.23525066,122.34,122.32,0.05903366]
[1742306680915,0.06035066,122.34,122.32,0.05903366]
[1742306681122,8.1752,122.33,122.32,0.05903366]
[1742306681421,0.06035066,122.34,122.32,0.05903366]
[1742306682520,0.06035066,122.34,122.33,34.24]
[1742306683122,0.06035066,122.34,122.33,42.4152]
[1742306683717,510.26911135,122.48,122.33,42.42]
[1742306683917,34.80474536,122.41,122.33,34.24]
[1742306684124,8.1722,122.38,122.34,8.1742]
[1742306684324,34.80474536,122.39,122.33,34.24]
[1742306684827,0.05856591,122.37,122.35,0.0608685]
[1742306685920,0.05856591,122.37,122.36,8.1732]
[1742306686116,0.05856591,122.37,122.36,42.4132]
[1742306686620,0.05856591,122.37,122.36,34.24]
[1742306686825,34.80474536,122.41,122.36,34.24]
[1742306686826,69.04474536,122.43,122.36,34.24]
[1742306687019,8.1695,122.42,122.37,269.92]
[1742306687219,34.80474536,122.43,122.37,269.92]
[1742306687913,0.05579946,122.41,122.39,0.052315]
[1742306688422,0.05579946,122.41,122.39,34.272315]
[1742306688828,0.05579946,122.41,122.4,8.1705]
[1742306689126,0.05579946,122.41,122.39,34.272315]
[1742306689322,0.05579946,122.41,122.4,8.1705]
[1742306689529,0.05579946,122.41,122.39,34.272315]
[1742306689722,8.22609946,122.41,122.39,34.272315]
[1742306690322,8.1705,122.4,122.39,34.272315]
[1742306690927,0.05579946,122.41,122.39,34.272315]
[1742306693822,0.05579946,122.41,122.39,42.443215]
[1742306694024,0.05579946,122.41,122.39,34.272315]
[1742306694729,8.22599946,122.41,122.39,34.272315]
[1742306695621,8.1705,122.4,122.39,34.272315]
[1742306695822,8.1705,122.4,122.39,0.052315]
[1742306697133,0.05579946,122.41,122.39,8.223515]
[1742306698026,0.05579946,122.41,122.39,0.052315]
[1742306699027,0.05579946,122.41,122.4,8.1705]
[1742306699333,0.05579946,122.41,122.39,0.052315]
[1742306700435,397.80474536,122.52,122.4,34.2]
[1742306700436,17.40237268,122.5,122.4,34.2]
[1742306700629,2.4337,122.5,122.4,54.13597268]
[1742306700832,34.80474536,122.49,122.41,2.4976]
[1742306701028,34.80474536,122.47,122.41,2.4976]
[1742306701337,34.80474536,122.47,122.4,36.7336]
[1742306701730,0.05727359,122.45,122.42,0.06023661]
[1742306702237,0.05727359,122.45,122.43,8.1684]
[1742306702637,0.05727359,122.45,122.42,0.06023661]
[1742306703231,8.22477359,122.45,122.42,8.22943661]
[1742306703538,0.05727359,122.45,122.42,0.06023661]
[1742306703845,8.1685,122.43,122.42,0.06023661]
[1742306704140,0.05727359,122.45,122.42,0.06023661]
[1742306704344,8.1685,122.43,122.42,0.06023661]
[1742306705141,29.80398052,122.43,122.42,0.06023661]
[1742306705639,21.63548052,122.43,122.37,306.6107]
[1742306705943,21.63548052,122.41,122.37,306.6107]
[1742306706143,21.63548052,122.41,122.37,304.1]
[1742306706544,21.63548052,122.41,122.38,8.1718]
[1742306706739,0.05733613,122.4,122.38,0.05558366]
[1742306707342,21.63548052,122.39,122.33,303.82]
[1742306707844,8.1722,122.38,122.33,303.82]
[1742306708041,21.63548052,122.39,122.33,303.82]
[1742306708342,8.1719,122.38,122.33,303.82]
[1742306708538,8.23192856,122.38,122.35,0.05292932]
[1742306708941,8.23192856,122.38,122.35,8.22642932]
[1742306708942,0.06002856,122.38,122.35,8.22642932]
[1742306709538,0.06002856,122.38,122.35,0.05292932]
[1742306710537,8.23232856,122.38,122.35,8.22642932]
[1742306710732,0.06002856,122.38,122.35,8.22642932]
[1742306710942,0.06002856,122.38,122.35,0.05292932]
[1742306712349,8.1732,122.36,122.35,0.05292932]
[1742306712747,21.63548052,122.37,122.33,269.64]
[1742306712950,8.1745,122.34,122.33,269.64]
[1742306713256,21.63548052,122.35,122.28,36.6601]
[1742306713645,8.1747,122.34,122.3,8.1772]
[1742306713837,8.1747,122.34,122.31,34.18]
[1742306714046,0.05558401,122.33,122.31,34.23212003]
[1742306714850,0.05558401,122.33,122.31,43.14212003]
[1742306715352,0.05558401,122.33,122.31,8.96212003]
[1742306715742,21.69106453,122.33,122.31,8.96212003]
[1742306716247,8.1759,122.32,122.31,8.96212003]
[1742306716647,24.29556453,122.33,122.27,269.68]
[1742306716848,8.1781,122.29,122.27,269.68]
[1742306717043,21.63548052,122.3,122.27,269.68]
[1742306717445,8.1786,122.28,122.27,269.68]
[1742306717853,8.1795,122.27,122.26,0.05614504]
[1742306718551,45.87546104,122.28,122.23,269.76]
[1742306718848,0.05158887,122.29,122.23,303.94]
[1742306719054,21.63548052,122.3,122.25,8.1805]
[1742306719252,68.87242224,122.31,122.25,8.1805]
[1742306719451,8.1784,122.29,122.23,303.94]
[1742306719651,8.23665811,122.29,122.27,0.05298597]
[1742306720553,8.1786,122.28,122.27,0.05298597]
[1742306720750,34.2,122.28,122.23,269.76]
[1742306720949,34.69242224,122.27,122.23,269.76]
[1742306721160,8.1802,122.26,122.23,269.76]
[1742306721554,8.1796,122.27,122.23,269.76]
[1742306722054,0.05708929,122.26,122.24,0.06236694]
[1742306723154,8.23728929,122.26,122.24,0.06236694]
[1742306723353,0.05708929,122.26,122.24,0.06236694]
[1742306724157,8.1806,122.25,122.24,0.06236694]
[1742306725158,8.23728929,122.26,122.24,0.06236694]
[1742306726856,0.05708929,122.26,122.24,0.06236694]
[1742306727360,0.05708929,122.26,122.25,8.1806]
[1742306727763,0.05708929,122.26,122.24,8.24356694]
[1742306728063,0.05708929,122.26,122.24,0.06236694]
[1742306728655,0.05708929,122.26,122.25,8.1806]
[1742306729057,0.05708929,122.26,122.24,0.06236694]
[1742306729861,0.05708929,122.26,122.24,8.24316694]
[1742306730060,0.05708929,122.26,122.24,0.06236694]
[1742306730257,0.05708929,122.26,122.25,8.1806]
[1742306731366,5.1197,122.32,122.24,5.01676694]
[1742306731556,39.81212224,122.32,122.24,5.01676694]
[1742306731762,39.81212224,122.32,122.24,4.9544]
[1742306732166,34.69242224,122.3,122.24,4.9544]
[1742306732359,34.69242224,122.3,122.25,8.1801]
[1742306732558,8.23188251,122.29,122.27,0.05284472]
[1742306732759,0.05368251,122.29,122.27,0.05284472]
[1742306733167,8.1786,122.28,122.27,0.05284472]
[1742306733569,34.69242224,122.28,122.23,269.76]
[1742306733969,0.05368251,122.29,122.24,34.2]
[1742306734365,0.05368251,122.29,122.25,8.1801]
[1742306734869,0.05368251,122.29,122.26,0.06292077]
[1742306735067,0.05368251,122.29,122.26,8.24252077]
[1742306735274,0.05368251,122.29,122.26,0.06292077]
[1742306735666,0.05368251,122.29,122.26,8.24242077]
[1742306736072,0.05368251,122.29,122.27,8.1791]
[1742306736276,0.05368251,122.29,122.27,42.3791]
[1742306736577,0.05368251,122.29,122.28,8.1786]
[1742306740272,0.05368251,122.29,122.27,36.5424]
[1742306740673,0.05368251,122.29,122.28,8.1786]
[1742306741475,7.1087,122.37,122.33,8.1752]
[1742306741876,8.1735,122.36,122.33,8.1752]
[1742306742072,34.69242224,122.4,122.31,304.1]
[1742306742277,68.87242224,122.4,122.31,304.1]
[1742306742481,68.87242224,122.4,122.32,2.4023]
[1742306742682,0.0522855,122.37,122.34,0.05257213]
[1742306742875,0.0522855,122.37,122.34,34.23257213]
[1742306743671,0.0522855,122.37,122.36,8.1732]
[1742306744780,0.0522855,122.37,122.35,8.1735]
[1742306744973,0.0522855,122.37,122.34,34.23257213]
[1742306745176,0.0522855,122.37,122.35,8.1737]
[1742306745378,0.0522855,122.37,122.34,34.23257213]
[1742306745778,0.0522855,122.37,122.34,42.40677213]
[1742306745979,0.0522855,122.37,122.34,0.05257213]
[1742306747280,8.1737,122.36,122.34,0.05257213]
[1742306747582,0.0522855,122.37,122.34,0.05257213]
[1742306748181,34.2322855,122.37,122.34,0.05257213]
[1742306748378,8.1739,122.35,122.34,0.05257213]
[1742306751182,8.1734,122.36,122.34,0.05257213]
[1742306751373,0.0522855,122.37,122.34,0.05257213]
[1742306752983,0.0522855,122.37,122.34,42.38657213]
[1742306753183,0.0522855,122.37,122.34,34.21257213]
[1742306753384,8.1735,122.36,122.34,34.21257213]
[1742306753577,0.0522855,122.37,122.34,34.21257213]
[1742306754188,8.2250855,122.37,122.34,34.21257213]
[1742306754386,0.0522855,122.37,122.34,34.21257213]
[1742306754579,0.0522855,122.37,122.34,0.05257213]
[1742306755384,34.2122855,122.37,122.34,0.05257213]
[1742306755884,0.0522855,122.37,122.35,34.16]
[1742306756090,0.0522855,122.37,122.36,8.1732]
[1742306756981,0.0522855,122.37,122.35,36.6429]
[1742306756982,76.05442224,122.44,122.38,8.1714]
[1742306757377,76.05442224,122.44,122.37,303.98]
[1742306757884,34.69242224,122.42,122.37,269.82]
[1742306758089,34.75055327,122.42,122.39,0.05316057]
[1742306758389,8.1705,122.4,122.39,0.05316057]
[1742306759283,42.87242224,122.4,122.33,303.98]
[1742306759488,34.69242224,122.38,122.33,303.98]
[1742306759786,8.174,122.35,122.33,303.98]
[1742306759979,68.85242224,122.38,122.33,303.98]
[1742306760289,34.16,122.38,122.33,303.98]
[1742306760589,0.06178686,122.37,122.34,0.05948762]
[1742306761387,8.23488686,122.37,122.34,0.05948762]
[1742306761786,0.06178686,122.37,122.34,0.05948762]
[1742306763787,0.06178686,122.37,122.35,8.1736]
[1742306763980,0.06178686,122.37,122.34,0.05948762]
[1742306764482,0.06178686,122.37,122.35,34.14]
[1742306764886,0.06178686,122.37,122.36,8.1732]
[1742306765286,8.1696,122.42,122.35,36.4608]
[1742306765694,8.1699,122.41,122.35,36.4608]
[1742306765887,71.19742224,122.44,122.37,8.1723]
[1742306766090,71.19742224,122.44,122.38,34.14]
[1742306766286,8.1711,122.4,122.38,34.14]
[1742306766489,34.74769913,122.42,122.4,0.05831786]
[1742306766689,34.69242224,122.42,122.36,34.14]
[1742306766989,8.1715,122.39,122.36,34.14]
[1742306767290,34.69242224,122.42,122.38,0.05644753]
[1742306767494,8.22498564,122.39,122.38,0.05644753]
[1742306769097,8.1745,122.34,122.33,269.82]
[1742306769597,68.83242224,122.35,122.29,269.76]
[1742306769988,68.83242224,122.37,122.29,269.76]
[1742306770497,0.0583014,122.34,122.32,0.05396397]
[1742306770697,8.2333014,122.34,122.32,34.19396397]
[1742306770893,0.0583014,122.34,122.32,34.19396397]
[1742306772596,101.56695007,122.42,122.32,34.19396397]
[1742306772793,67.42695007,122.42,122.33,4.9298]
[1742306773399,34.69242224,122.4,122.29,269.76]
[1742306773588,34.69242224,122.38,122.3,36.6298]
[1742306773793,0.05963475,122.36,122.33,0.05517936]
[1742306773993,8.1745,122.34,122.33,0.05517936]
[1742306774990,77.00692224,122.34,122.33,7.936e-05]
[1742306775195,68.83242224,122.34,122.29,269.76]
[1742306775595,8.1772,122.3,122.29,269.76]
[1742306775796,68.83242224,122.34,122.29,269.76]
[1742306776090,68.83242224,122.34,122.24,2.4875]
[1742306776091,34.69242224,122.3,122.24,272.2475]
[1742306776293,34.14,122.29,122.24,272.2475]
[1742306776495,34.69242224,122.3,122.26,0.05914785]
[1742306776694,34.20285828,122.28,122.26,0.05914785]
[1742306777699,42.38205828,122.28,122.26,0.05914785]
[1742306777897,34.20285828,122.28,122.26,0.05914785]
[1742306779207,0.06285828,122.28,122.26,0.05914785]
[1742306779601,0.06285828,122.28,122.26,8.23884785]
[1742306780001,0.06285828,122.28,122.26,0.05914785]
[1742306780401,0.06285828,122.28,122.27,8.1792]
[1742306780806,0.06285828,122.28,122.27,42.3192]
[1742306781204,0.06285828,122.28,122.27,34.14]
[1742306781400,4.9169,122.35,122.27,8.18]
[1742306781605,13.0909,122.35,122.28,34.14]
[1742306781802,13.0909,122.35,122.31,8.1759]
[1742306782003,13.0911,122.35,122.31,8.1759]
[1742306782209,13.0911,122.35,122.3,269.86]
[1742306782406,185.37864482,122.37,122.31,34.14]
[1742306782608,0.05932504,122.34,122.31,34.19799992]
[1742306782911,0.05932504,122.34,122.33,8.1752]
[1742306783109,0.05932504,122.34,122.31,34.19799992]
[1742306783312,0.05932504,122.34,122.31,0.05799992]
[1742306783705,8.23412504,122.34,122.31,0.05799992]
[1742306784012,0.05932504,122.34,122.31,0.05799992]
[1742306784212,8.1756,122.33,122.31,0.05799992]
[1742306784608,68.89174728,122.34,122.31,0.05799992]
[1742306784808,77.06664728,122.34,122.31,0.05799992]
[1742306785008,34.19932504,122.34,122.31,0.05799992]
[1742306785211,0.05932504,122.34,122.31,0.05799992]
[1742306785615,0.05932504,122.34,122.31,8.23449992]
[1742306785815,0.05932504,122.34,122.31,0.05799992]
[1742306786711,0.05932504,122.34,122.31,8.23419992]
[1742306786916,0.05932504,122.34,122.31,0.05799992]
[1742306787415,8.1756,122.33,122.31,0.05799992]
[1742306788013,0.05932504,122.34,122.31,0.05799992]
[1742306788612,8.1756,122.33,122.31,0.05799992]
[1742306788808,0.05932504,122.34,122.31,0.05799992]
[1742306789015,0.05932504,122.34,122.31,34.19799992]
[1742306789516,404.6459,122.41,122.31,34.19799992]
[1742306789718,41.6459,122.41,122.31,34.14]
[1742306790110,8.1716,122.39,122.35,8.1735]
[1742306790311,8.1716,122.39,122.36,269.86]
[1742306790611,8.1725,122.37,122.36,0.05611685]
[1742306791012,68.83242224,122.38,122.36,0.05611685]
[1742306791215,8.1725,122.37,122.36,0.05611685]
[1742306791718,42.3121,122.38,122.36,0.05611685]
[1742306791914,0.05520879,122.39,122.36,0.05611685]
[1742306792315,0.05520879,122.39,122.37,8.1721]
[1742306793021,0.05520879,122.39,122.36,0.05611685]
[1742306795722,0.05520879,122.39,122.36,34.17611685]
[1742306795922,0.05520879,122.39,122.38,8.1719]
[1742306796719,0.05520879,122.39,122.37,8.1724]
[1742306797019,0.05520879,122.39,122.36,34.17611685]
[1742306798922,34.69242224,122.44,122.36,34.17611685]
[1742306799123,41.4621,122.45,122.36,34.12]
[1742306799324,8.1675,122.45,122.42,8.1691]
[1742306799630,7.2733,122.49,122.42,269.76]
[1742306799828,8.1649,122.49,122.45,8.1668]
[1742306800325,0.06018066,122.48,122.46,0.05856231]
[1742306801027,8.1659,122.47,122.46,0.05856231]
[1742306801419,0.06018066,122.48,122.46,0.05856231]
[1742306801623,8.1659,122.47,122.46,0.05856231]
[1742306801819,42.2659,122.47,122.46,0.05856231]
[1742306802023,42.2659,122.47,122.42,269.76]
[1742306802024,34.1,122.47,122.42,269.76]
[1742306802228,34.69242224,122.46,122.42,269.76]
[1742306802432,34.69242224,122.46,122.39,34.1]
[1742306802630,8.1692,122.42,122.39,42.2709]
[1742306802825,34.1,122.44,122.39,34.1]
[1742306803135,0.05916429,122.43,122.4,8.22318718]
[1742306803322,0.05916429,122.43,122.4,0.05298718]
[1742306804635,8.22806429,122.43,122.4,0.05298718]
[1742306805237,0.05916429,122.43,122.4,0.05298718]
[1742306805529,34.15916429,122.43,122.4,0.05298718]
[1742306805730,34.69242224,122.42,122.4,0.05298718]
[1742306805931,8.1699,122.41,122.4,0.05298718]
[1742306806333,34.15916429,122.43,122.4,0.05298718]
[1742306806536,0.05916429,122.43,122.4,0.05298718]
[1742306807036,0.05916429,122.43,122.41,8.1698]
[1742306807230,0.05916429,122.43,122.4,34.15298718]
[1742306807830,0.05916429,122.43,122.41,8.1695]
[1742306808035,0.05916429,122.43,122.4,34.15298718]
[1742306808540,0.05916429,122.43,122.42,8.1692]
[1742306809441,0.05916429,122.43,122.41,13.0114]
[1742306809640,0.05916429,122.43,122.41,4.8419]
[1742306809935,0.05916429,122.43,122.42,8.1692]
[1742306811944,618.80829694,122.6,122.44,34.69242224]
[1742306811945,17.34621112,122.55,122.44,34.69242224]
[1742306812144,51.44621112,122.55,122.45,303.74]
[1742306812342,8.1624,122.53,122.5,8.1638]
[1742306812548,17.34621112,122.56,122.49,34.1]